bitfinex/quotes_ETHUSD_20220109
["timestamp","ask_amount","ask_price","bid_price","bid_amount"]
[1641743575356,0.80951,3090.3,3090.2,2.76258735]
[1641743575959,0.80951,3090.3,3090.2,3.97342224]
[1641743576809,0.80951,3090.3,3090.2,0.00511581]
[1641743577012,0.80951,3090.3,3089.7,6.14170108]
[1641743577013,4.92115059,3089.8,3089.7,6.14170108]
[1641743577210,4.92115059,3089.8,3089.4,3.15194744]
[1641743577211,9.05,3089.7,3089.4,3.15194744]
[1641743577412,9.05,3089.7,3089.6,2.44198707]
[1641743577814,7.35,3089.6,3089.4,3.15194744]
[1641743578011,13.47151232,3089.5,3089.4,3.15194744]
[1641743578213,13.55178654,3089.5,3089.4,3.15194744]
[1641743578411,6.8,3089.4,3088.3,4.57559828]
[1641743578811,6.8,3089.4,3088.7,0.00852636]
[1641743579111,1.6199316,3089.1,3088.7,0.00852636]
[1641743579311,0.80998,3088.9,3088.7,0.00852636]
[1641743579714,0.80998,3088.9,3088.4,0.01023163]
[1641743579912,0.80995,3088.7,3088.4,1.28515343]
[1641743580116,0.8099411,3088.6,3088.4,0.01023163]
[1641743580316,0.8099411,3088.6,3088.5,0.0096632]
[1641743580548,0.8099411,3088.6,3087.4,24.13647795]
[1641743580549,0.80999,3088.4,3088.2,0.01136847]
[1641743580750,0.80999,3088.4,3088.1,0.0119369]
[1641743580949,0.80999,3088.4,3087.8,0.01364217]
[1641743581153,0.81,3088.3,3088.0,1.1897806]
[1641743581350,0.81,3088.3,3087.5,19.73528744]
[1641743581550,0.81,3088.3,3088.1,0.0119369]
[1641743581751,0.81,3088.3,3087.8,1.20777513]
[1641743581951,0.81,3088.3,3087.9,0.01307374]
[1641743582152,0.80995,3088.2,3087.9,0.01307374]
[1641743582352,1.61994,3088.2,3087.9,0.01307374]
[1641743582552,1.61994,3088.2,3088.0,1.32780497]
[1641743583053,0.80995,3088.2,3088.1,5.7619369]
[1641743583252,0.8100025,3088.3,3088.1,0.0119369]
[1641743583654,1.6199925,3088.3,3088.1,0.0119369]
[1641743583852,1.6199925,3088.3,3087.5,0.01534744]
[1641743584052,0.8101265,3087.9,3087.5,0.01534744]
[1641743585106,0.8101265,3087.9,3087.6,1.52788703]
[1641743585308,0.81008,3087.9,3087.6,1.52788703]
[1641743585507,0.81008,3087.9,3087.7,0.01421059]
[1641743586908,0.81008,3087.9,3087.6,0.01477901]
[1641743587109,0.81008,3087.9,3087.7,1.22598855]
[1641743587611,0.13819997,3088.8,3087.7,1.22598855]
[1641743587612,0.0067024,3089.0,3088.2,0.8101884]
[1641743587811,0.0067024,3089.0,3088.3,0.47669708]
[1641743588061,0.0067024,3089.0,3088.9,14.76296545]
[1641743588263,2.7545394,3089.7,3088.9,14.76296545]
[1641743588464,1.61987916,3090.4,3089.9,4.83322311]
[1641743588465,0.8096055,3090.0,3089.9,4.83322311]
[1641743588762,12.7447,3091.2,3089.9,4.83322311]
[1641743588763,1.94385499,3091.3,3090.0,28.43064266]
[1641743588962,1.94385499,3091.3,3090.6,0.01270466]
[1641743589162,1.94385499,3091.3,3090.6,0.91980466]
[1641743589163,2.75310499,3091.3,3090.6,0.91980466]
[1641743589364,2.75310499,3091.3,3091.1,1.19797942]
[1641743590061,1.61853,3091.3,3090.5,0.4237]
[1641743590262,0.8092994,3091.4,3090.4,1.0836855]
[1641743590263,0.964,3091.6,3090.4,0.8100855]
[1641743590463,1.6190676,3091.0,3090.4,0.8100855]
[1641743590866,0.00625265,3091.3,3090.4,0.8100855]
[1641743591064,0.00625265,3091.3,3090.6,1.00390594]
[1641743591264,0.8094,3091.0,3090.6,1.00390594]
[1641743591664,0.00397896,3090.9,3090.6,1.00390594]
[1641743591904,0.81337896,3090.9,3090.6,1.00390594]
[1641743592102,0.00341054,3090.9,3090.6,1.00390594]
[1641743594605,0.01773471,3091.5,3091.3,0.8100855]
[1641743594803,0.01773471,3091.5,3091.4,17.01074875]
[1641743595002,0.01773471,3091.5,3091.4,14.76273373]
[1641743595403,0.0067024,3092.5,3091.5,10.4]
[1641743595658,0.0067024,3092.5,3092.1,11.63896209]
[1641743595856,1.19484663,3092.2,3091.4,0.01273373]
[1641743596160,1.19484663,3092.2,3091.3,0.8100855]
[1641743596161,1.20280455,3092.2,3091.3,0.8100855]
[1641743596956,1.19337131,3092.0,3091.7,1.2896146]
[1641743597357,0.00625265,3091.9,3091.4,1.14339737]
[1641743597558,0.00625265,3091.9,3091.3,0.8100855]
[1641743597759,0.00568423,3091.8,3091.3,0.8100855]
[1641743598158,0.00511581,3091.7,3091.3,0.8100855]
[1641743598558,0.00454738,3091.6,3091.3,0.8100855]
[1641743598762,0.00454738,3091.6,3091.5,1.15165955]
[1641743598963,2.00255131,3092.0,3091.5,1.15165955]
[1641743599409,0.00625265,3091.9,3091.5,1.15165955]
[1641743599811,2.00255131,3092.0,3091.5,1.15165955]
[1641743599812,0.81490423,3091.8,3091.5,1.15165955]
[1641743600009,1.62414423,3091.8,3091.3,0.8100855]
[1641743600209,0.00511581,3091.7,3091.3,0.8100855]
[1641743600611,0.00454738,3091.6,3091.3,0.8100855]
[1641743601009,0.00397896,3091.5,3091.3,0.8100855]
[1641743601412,2.81188131,3092.0,3091.3,0.8100855]
[1641743601413,1.20840605,3091.4,3091.3,0.8100855]
[1641743603264,5.65840605,3091.4,3091.3,0.8100855]
[1641743603862,1.20840605,3091.4,3091.3,0.8100855]
[1641743604264,1.20840605,3091.4,3091.3,3.0504277]
[1641743604464,0.00341054,3091.4,3091.3,3.0504277]
[1641743604663,0.00341054,3091.4,3091.3,0.8100855]
[1641743605262,0.00341054,3091.4,3091.3,15.5600855]
[1641743605465,0.00341054,3091.4,3091.3,34.4700855]
[1641743605662,0.00341054,3091.4,3091.3,35.51478933]
[1641743605863,0.00341054,3091.4,3091.3,1.85478933]
[1641743606063,0.00341054,3091.4,3091.3,0.8100855]
[1641743606263,1.19132021,3091.7,3091.3,3.56621613]
[1641743606666,0.00113684,3091.6,3091.3,3.56621613]
[1641743606908,1.00091149,3091.5,3091.3,0.8100855]
[1641743616512,2.00060021,3091.7,3091.3,0.8100855]
[1641743616711,1.31775822,3091.6,3091.4,0.00113684]
[1641743617912,2.12704822,3091.6,3091.4,0.00113684]
[1641743618159,2.93640822,3091.6,3091.4,0.00113684]
[1641743618561,2.12704822,3091.6,3091.4,0.00113684]
[1641743621661,1.31775822,3091.6,3091.4,0.00113684]
[1641743621907,1.19132021,3091.7,3091.4,0.00113684]
[1641743622504,1.8159124,3092.0,3091.4,0.00113684]
[1641743622705,2.6250724,3092.0,3091.4,0.00113684]
[1641743622905,0.00170527,3091.9,3091.4,1.20036055]
[1641743623105,1.00170527,3091.9,3091.4,1.20036055]
[1641743623405,0.00113685,3091.8,3091.4,1.20036055]
[1641743623805,0.81035685,3091.8,3091.4,1.20036055]
[1641743624206,1.61955685,3091.8,3091.4,0.00113684]
[1641743625308,0.00113685,3091.8,3091.4,2.23720382]
[1641743625764,0.00113685,3091.8,3091.4,7.00995382]
[1641743625963,0.00113685,3091.8,3091.4,26.16315382]
[1641743626164,0.00113685,3091.8,3091.4,23.92708684]
[1641743626364,0.00113685,3091.8,3091.4,5.01708684]
[1641743626766,0.00113685,3091.8,3091.4,0.00113684]
[1641743626965,0.00113685,3091.8,3091.5,2.75598226]
[1641743627665,0.00113685,3091.8,3091.6,2.03141555]
[1641743627865,0.00113685,3091.8,3091.7,10.22632317]
[1641743628066,0.00113685,3091.8,3091.7,8.2]
[1641743628466,0.00113685,3091.8,3091.5,2.20142746]
[1641743629066,0.00113685,3091.8,3091.7,7.7]
[1641743629317,0.00113685,3091.8,3091.6,2.75611416]
[1641743629705,0.00113685,3091.8,3091.7,9.17449842]
[1641743629906,0.00113685,3091.8,3091.7,9.15639886]
[1641743630110,0.00113685,3091.8,3091.6,2.75611416]
[1641743630911,0.00113685,3091.8,3091.7,2.75611416]
[1641743631709,1.61969685,3091.8,3091.4,2.757251]
[1641743631908,1.26015836,3091.5,3091.4,2.757251]
[1641743632109,2.67942537,3091.5,3091.4,2.757251]
[1641743632508,1.02554352,3091.5,3091.4,2.757251]
[1641743632712,2.02554352,3091.5,3091.4,2.757251]
[1641743633060,13.07665014,3091.5,3091.4,2.757251]
[1641743633460,2.20783144,3091.5,3091.4,2.757251]
[1641743633661,1.10581774,3091.5,3091.4,0.00113684]
[1641743633862,0.80926,3091.6,3091.4,0.00113684]
[1641743634661,0.80926,3091.6,3091.4,2.757251]
[1641743635762,0.80927,3091.7,3091.4,2.757251]
[1641743635962,0.81030685,3091.8,3091.4,0.00113684]
[1641743636808,2.86350795,3092.1,3091.7,1.41455633]
[1641743637006,1.24665907,3091.9,3091.7,1.41455633]
[1641743637706,1.61835,3091.8,3091.7,1.41455633]
[1641743637908,1.61835,3091.8,3091.4,3.9843764]
[1641743638108,1.61835,3091.8,3091.5,1.22598855]
[1641743638405,1.61835,3091.8,3091.6,0.00113685]
[1641743638606,0.80917,3091.8,3091.6,0.00113685]
[1641743639209,0.80917,3091.8,3091.5,0.00170527]
[1641743639611,1.80917,3091.8,3091.5,1.22769382]
[1641743639811,3.29870672,3091.8,3091.5,1.22769382]
[1641743640011,3.29870672,3091.8,3091.6,0.00113685]
[1641743640311,8.01873,3091.7,3091.6,0.00113685]
[1641743640561,9.01873,3091.7,3091.6,0.00113685]
[1641743640760,0.8093238,3091.6,3091.4,0.00227369]
[1641743641362,5.15934,3091.5,3091.4,0.00227369]
[1641743641562,6.15934,3091.5,3091.4,0.00227369]
[1641743641963,0.80934,3091.5,3091.4,0.00227369]
[1641743642262,1.80934,3091.5,3091.4,0.00227369]
[1641743642462,0.80934,3091.5,3091.4,0.00227369]
[1641743643166,0.80919,3091.7,3091.4,0.00227369]
[1641743643366,1.24665907,3091.9,3091.4,0.00227369]
[1641743643564,1.61950685,3092.0,3091.4,0.00227369]
[1641743643865,0.80915,3091.8,3091.4,0.00227369]
[1641743644064,0.80921,3091.6,3091.4,0.00227369]
[1641743644507,1.10921,3091.6,3091.4,0.00227369]
[1641743644710,2.10921,3091.6,3091.4,0.00227369]
[1641743644908,9.26571867,3091.5,3091.4,0.00227369]
[1641743645108,13.35649428,3091.5,3091.4,0.00227369]
[1641743646709,13.35649428,3091.5,3091.0,0.975]
[1641743646710,0.80952,3091.2,3091.0,0.975]
[1641743646910,15.214,3091.1,3091.0,0.975]
[1641743647109,15.214,3091.1,3090.5,1.22598855]
[1641743647110,12.05,3091.0,3090.5,1.22598855]
[1641743647308,12.35,3091.0,3090.5,1.22598855]
[1641743647511,10.8,3090.8,3090.5,1.22598855]
[1641743647708,11.6097,3090.8,3090.5,1.22598855]
[1641743647908,1.8096902,3090.7,3090.1,2.23223626]
[1641743648155,1.8096902,3090.7,3089.9,10.04171163]
[1641743648156,0.80969,3090.4,3089.9,10.04171163]
[1641743648360,0.80969,3090.4,3090.2,0.00227369]
[1641743648555,1.13299929,3090.3,3090.2,0.00227369]
[1641743648955,2.75237929,3090.3,3090.2,0.00227369]
[1641743649155,3.56206929,3090.3,3090.2,0.00227369]
[1641743649357,2.75237929,3090.3,3090.2,0.00227369]
[1641743650355,2.75237929,3090.3,3090.2,1.43092515]
[1641743651158,1.13299929,3090.3,3090.2,1.43092515]
[1641743653003,1.13299929,3090.3,3090.2,0.00227369]
[1641743653004,2.13299929,3090.3,3090.2,0.00227369]
[1641743653404,2.13299929,3090.3,3090.0,0.00341054]
[1641743653608,2.13299929,3090.3,3090.2,2.7574806]
[1641743653609,17.84155329,3090.3,3090.2,2.7574806]
[1641743653806,13.35,3090.2,3090.0,0.00341054]
[1641743654008,15.65939318,3090.1,3090.0,0.00341054]
[1641743654206,16.65939318,3090.1,3090.0,0.00341054]
[1641743654806,2.10939318,3090.1,3090.0,0.00341054]
[1641743655009,1.10939318,3090.1,3090.0,0.00341054]
[1641743655206,3.51921318,3090.1,3090.0,0.00341054]
[1641743655407,3.5994874,3090.1,3090.0,0.00341054]
[1641743656057,1.22252404,3089.9,3089.0,2.42838855]
[1641743656263,0.8098572,3089.6,3089.1,1.22598855]
[1641743656458,1.30136688,3089.2,3089.1,1.22598855]
[1641743656958,1.30136688,3089.2,3089.1,0.00511581]
[1641743657360,2.11129898,3089.2,3089.1,0.00511581]
[1641743657560,3.11129898,3089.2,3089.1,0.00511581]
[1641743657959,3.92118898,3089.2,3089.1,0.00511581]
[1641743658360,6.67941766,3089.2,3089.1,0.00511581]
[1641743658559,6.67941766,3089.2,3088.9,6.16]
[1641743658560,15.56014,3089.1,3088.9,6.16]
[1641743658762,13.42845558,3089.1,3088.9,6.11]
[1641743658958,4.98518898,3089.2,3088.9,6.11]
[1641743658959,14.9,3089.0,3088.9,6.11]
[1641743659159,15.9466,3089.0,3088.8,1.22598855]
[1641743659407,0.81014,3088.9,3088.8,1.22598855]
[1641743659606,2.11014,3088.9,3088.8,1.22598855]
[1641743659804,2.11014,3088.9,3088.8,1.22769382]
[1641743660207,1.81014,3088.9,3088.8,0.00170527]
[1641743660611,1.81014,3088.9,3088.7,1.23609809]
[1641743660808,1.81014,3088.9,3088.7,1.13609809]
[1641743661005,1.62006,3089.1,3088.7,1.13609809]
[1641743662810,2.62006,3089.1,3088.7,1.13609809]
[1641743663055,1.62006,3089.1,3088.7,1.13609809]
[1641743663256,2.62006,3089.1,3088.7,1.13609809]
[1641743663457,2.62006,3089.1,3088.8,0.0008]
[1641743663756,3.4300002,3089.1,3088.9,0.00113685]
[1641743665165,2.62006,3089.1,3088.9,0.00113685]
[1641743665364,0.8099,3089.1,3088.9,0.00113685]
[1641743665559,1.61968,3089.3,3088.9,0.00113685]
[1641743666833,0.8099,3089.1,3088.9,0.00113685]
[1641743668217,0.8099,3089.1,3089.0,1.31002084]
[1641743669620,0.8099,3089.1,3088.9,0.00273685]
[1641743671054,0.8099,3089.1,3089.0,1.41523015]
[1641743672056,0.8099,3089.1,3089.0,1.36523015]
[1641743672656,1.31103456,3089.2,3089.0,1.36523015]
[1641743673058,2.31103456,3089.2,3089.0,1.36523015]
[1641743673657,1.31103456,3089.2,3089.0,1.36523015]
[1641743674058,0.80982,3089.4,3089.0,1.36523015]
[1641743674059,1.80982,3089.4,3089.0,1.36523015]
[1641743674509,0.00113684,3089.3,3089.0,1.36523015]
[1641743674706,0.00113684,3089.3,3089.1,2.75814773]
[1641743675808,1.06364326,3089.2,3089.1,2.75814773]
[1641743676406,1.06364326,3089.2,3089.1,2.70814773]
[1641743676608,1.06364326,3089.2,3089.0,1.36523015]
[1641743677011,2.68350326,3089.2,3088.9,0.00273685]
[1641743678056,6.55997,3089.0,3088.9,0.00273685]
[1641743678260,2.03092672,3089.0,3088.9,0.00273685]
[1641743678458,2.84092102,3089.0,3088.9,0.00273685]
[1641743678657,2.84092102,3089.0,3088.9,0.00193685]
[1641743678857,3.84092102,3089.0,3088.9,0.00193685]
[1641743679158,3.84092102,3089.0,3088.9,0.00113685]
[1641743679357,0.89867781,3089.0,3088.9,0.00113685]
[1641743679561,0.89867781,3089.0,3088.3,0.00454739]
[1641743679758,1.00532538,3088.5,3088.4,1.25721292]
[1641743680058,1.00532538,3088.5,3088.4,0.00397897]
[1641743680459,1.00532538,3088.5,3088.3,0.00454739]
[1641743680859,1.81536538,3088.5,3088.3,0.00454739]
[1641743682211,1.00532538,3088.5,3088.3,0.00454739]
[1641743683207,0.81004,3088.6,3088.3,0.00454739]
[1641743683408,0.80997,3088.7,3088.3,0.00454739]
[1641743684009,0.80991,3089.0,3088.3,0.00454739]
[1641743684209,0.80991,3089.0,3088.3,1.23053594]
[1641743684609,0.80995,3088.9,3088.5,1.31146757]
[1641743684814,0.80991,3089.0,3088.5,1.31146757]
[1641743685008,0.80991,3089.0,3088.6,0.00284212]
[1641743686061,0.8165724,3089.1,3088.6,0.00284212]
[1641743686263,0.80987,3089.1,3088.6,0.00284212]
[1641743687264,0.80987,3089.1,3088.7,1.27159546]
[1641743687971,0.81094684,3089.3,3088.7,1.27159546]
[1641743688167,0.00113684,3089.3,3088.7,2.24799546]
[1641743688366,0.00113684,3089.3,3088.8,2.51360871]
[1641743688665,0.00113684,3089.3,3088.9,0.00113685]
[1641743688866,0.00113684,3089.3,3088.9,1.62039345]
[1641743689066,0.00113684,3089.3,3089.1,1.20986217]
[1641743689317,0.00113684,3089.3,3089.2,18.024019]
[1641743690112,0.00113684,3089.3,3089.2,19.25000755]
[1641743690307,0.00113684,3089.3,3089.2,9.95000755]
[1641743691108,0.00113684,3089.3,3089.2,14.08465403]
[1641743691710,0.00113684,3089.3,3089.2,8.724019]
[1641743693071,0.00113684,3089.3,3089.2,6.60003979]
[1641743693270,0.00113684,3089.3,3089.2,2.37602834]
[1641743694068,0.00113684,3089.3,3089.2,3.17104605]
[1641743694270,0.00113684,3089.3,3089.2,8.47104605]
[1641743694868,0.00113684,3089.3,3089.2,8.47184605]
[1641743695070,0.00113684,3089.3,3089.2,3.17184605]
[1641743695470,0.00113684,3089.3,3089.2,4.3978346]
[1641743695873,0.00113684,3089.3,3089.2,4.3986346]
[1641743696274,0.00113684,3089.3,3089.2,8.8486346]
[1641743696834,0.00113684,3089.3,3089.2,11.6065391]
[1641743697020,0.00113684,3089.3,3089.2,30.5165391]
[1641743697619,3.684e-05,3089.3,3089.2,30.5165391]
[1641743698020,3.684e-05,3089.3,3089.2,31.1165391]
[1641743698220,3.684e-05,3089.3,3089.2,44.78919703]
[1641743698419,1.22922644,3089.9,3089.3,14.75337368]
[1641743698619,1.22922644,3089.9,3089.5,18.91]
[1641743698820,0.80938,3090.9,3089.8,14.75]
[1641743699120,0.00568424,3090.8,3090.1,1.54939394]
[1641743699319,0.00568424,3090.8,3090.2,2.25989084]
[1641743699521,0.8093,3091.2,3090.2,2.25989084]
[1641743699522,0.00511581,3090.7,3090.2,2.25989084]
[1641743699720,0.00511581,3090.7,3090.2,2.39809081]
[1641743699920,0.00454739,3090.6,3090.2,5.15599531]
[1641743700323,1.61951188,3091.1,3090.3,2.04597722]
[1641743700324,0.00397897,3090.5,3090.3,2.04597722]
[1641743700561,0.00397897,3090.5,3090.4,16.93088129]
[1641743700762,1.95958844,3091.3,3090.8,1.01004408]
[1641743700962,1.95958844,3091.3,3090.4,16.93088129]
[1641743701165,0.00795793,3091.2,3090.3,2.7579045]
[1641743701370,1.61876,3090.9,3090.3,2.7579045]
[1641743701666,0.00568424,3090.8,3090.4,2.7579045]
[1641743702064,0.00511581,3090.7,3090.4,4.0160895]
[1641743702464,0.00454739,3090.6,3090.4,1.258185]
[1641743702869,0.00397897,3090.5,3090.4,1.258185]
[1641743703064,0.00397897,3090.5,3090.2,2.26499424]
[1641743703464,0.00341054,3090.4,3090.3,7.2758322]
[1641743704064,0.00341054,3090.4,3090.3,1.4258322]
[1641743705721,0.00341054,3090.4,3090.3,3.54854796]
[1641743706122,0.00341054,3090.4,3090.3,8.89854796]
[1641743706520,0.00341054,3090.4,3090.3,12.09854796]
[1641743707022,0.00341054,3090.4,3090.3,40.40854796]
[1641743707222,1.054e-05,3090.4,3090.3,41.21773796]
[1641743708069,1.054e-05,3090.4,3090.3,46.58894204]
[1641743708468,1.054e-05,3090.4,3090.3,47.05294204]
[1641743709267,1.054e-05,3090.4,3090.3,47.65294204]
[1641743709871,0.81235919,3091.3,3090.8,3.2358474]
[1641743710069,0.81235919,3091.3,3090.7,6.4716948]
[1641743710070,0.81235919,3091.3,3091.0,18.91]
[1641743710268,0.00454739,3091.2,3091.1,2.49237266]
[1641743710468,0.00454739,3091.2,3091.1,21.40237266]
[1641743711569,0.00454739,3091.2,3091.1,22.79777851]
[1641743711828,0.00454739,3091.2,3091.1,27.74118379]
[1641743712216,0.00454739,3091.2,3091.1,29.07988456]
[1641743712621,0.80888,3092.9,3091.7,0.8089]
[1641743712821,1.61774,3093.2,3091.8,2.84261503]
[1641743712822,0.8088,3093.2,3091.8,2.84261503]
[1641743713020,0.00625266,3092.3,3091.9,1.14656111]
[1641743713222,0.00625266,3092.3,3092.0,2.41655904]
[1641743713420,0.00568423,3092.2,3092.1,18.91]
[1641743713618,0.00568423,3092.2,3092.1,20.61523918]
[1641743713919,0.00568423,3092.2,3092.1,19.674]
[1641743714119,0.00568423,3092.2,3092.1,24.71720181]
[1641743714621,8.423e-05,3092.2,3092.1,24.71720181]
[1641743714820,8.423e-05,3092.2,3092.1,25.71720181]
[1641743715019,8.423e-05,3092.2,3092.1,38.0012027]
[1641743715224,0.00662782,3092.8,3092.2,14.75]
[1641743715421,2.782e-05,3092.8,3092.6,0.80849]
[1641743715676,2.782e-05,3092.8,3092.7,21.6067107]
[1641743715879,2.782e-05,3092.8,3092.7,23.44090755]
[1641743716071,0.00343837,3092.8,3092.7,22.82721251]
[1641743716274,0.00341055,3092.8,3092.7,22.82721251]
[1641743716671,0.00341055,3092.8,3092.7,24.77381988]
[1641743716871,0.00341055,3092.8,3092.7,52.54067502]
[1641743717679,0.00341055,3092.8,3092.7,53.54067502]
[1641743718080,0.700802,3093.6,3093.1,0.8083441]
[1641743718276,0.9311203,3094.3,3093.2,3.5049707]
[1641743718478,0.00397896,3093.5,3093.3,0.1588]
[1641743718675,0.9311203,3094.3,3093.6,14.75]
[1641743718876,0.9311203,3094.3,3093.7,2.6967107]
[1641743719077,0.88509926,3094.3,3094.1,14.75]
[1641743719330,0.88509926,3094.3,3094.1,15.459]
[1641743719528,0.88509926,3094.3,3094.1,19.619]
[1641743720027,0.88509926,3094.3,3094.2,35.06351543]
[1641743720628,9.926e-05,3094.3,3094.2,35.06351543]
[1641743720827,0.00662779,3095.4,3094.2,18.91]
[1641743721029,0.00662779,3095.4,3094.1,2.3253339]
[1641743721030,1.07768264,3095.1,3094.3,2.35388523]
[1641743721227,1.07768264,3095.1,3094.1,3.9966]
[1641743721827,1.07768264,3095.1,3093.8,0.00227369]
[1641743721828,1.37894917,3094.5,3093.8,0.00227369]
[1641743722127,1.39179605,3094.0,3093.5,3.68667896]
[1641743722527,1.39179605,3094.0,3093.6,0.00341054]
[1641743722731,0.83405429,3094.5,3093.6,0.00341054]
[1641743722930,1.61728,3094.4,3093.4,0.00568423]
[1641743723178,0.8086571,3094.1,3093.4,0.00568423]
[1641743723580,0.8086571,3094.1,3093.4,2.76042263]
[1641743723776,0.8087,3094.2,3093.4,2.76042263]
[1641743723977,0.8087,3094.2,3093.5,0.00511581]
[1641743724175,6.03640003,3093.6,3093.5,0.00511581]
[1641743724376,1.13640003,3093.6,3093.5,0.00511581]
[1641743724576,1.13529653,3094.1,3092.9,0.00852635]
[1641743724783,1.61723,3094.4,3092.9,0.00852635]
[1641743724976,3.7679,3094.7,3093.6,5.87728944]
[1641743725176,1.61927369,3094.8,3093.1,18.91]
[1641743725379,0.00113685,3094.6,3093.7,0.00397896]
[1641743725577,1.06925068,3094.0,3093.2,2.20700918]
[1641743725778,1.06925068,3094.0,3093.4,1.15530206]
[1641743726180,1.06925068,3094.0,3093.8,2.75473087]
[1641743726577,1.06925068,3094.0,3093.9,0.00284212]
[1641743727422,1.06925068,3094.0,3093.9,1.14599851]
[1641743727623,1.06925068,3094.0,3093.9,3.90072938]
[1641743728020,0.8085,3094.6,3093.9,3.90072938]
[1641743728222,2.61865587,3094.7,3093.9,3.90072938]
[1641743728422,1.61865587,3094.7,3094.0,0.00227369]
[1641743728622,1.00113685,3094.6,3094.0,0.00227369]
[1641743728827,0.00113685,3094.6,3094.0,0.00227369]
[1641743729223,0.00113685,3094.6,3094.0,2.75700456]
[1641743729724,0.00113685,3094.6,3094.1,0.00170527]
[1641743730573,0.00113685,3094.6,3094.1,2.75643614]
[1641743731067,1.10100162,3094.8,3094.2,1.23649098]
[1641743731270,1.10100162,3094.8,3094.2,1.23762783]
[1641743731474,1.10100162,3094.8,3094.3,0.00170527]
[1641743731669,1.10100162,3094.8,3094.3,2.75643614]
[1641743731870,0.80833,3095.1,3094.3,2.75643614]
[1641743732068,0.80833,3095.1,3094.4,0.00113685]
[1641743732268,0.00227369,3095.0,3094.5,1.16510431]
[1641743732669,0.00170527,3094.9,3094.4,0.00113685]
[1641743732869,1.12170107,3094.8,3094.6,2.75473087]
[1641743733071,1.12283791,3094.8,3094.6,2.75473087]
[1641743733470,10.54670504,3094.7,3094.6,2.75473087]
[1641743733668,11.54670504,3094.7,3094.6,2.75473087]
[1641743734322,11.54670504,3094.7,3094.3,0.00170527]
[1641743734323,3.30519504,3094.7,3094.3,2.75643614]
[1641743734517,1.0,3094.6,3094.3,2.75643614]
[1641743734717,1.0,3094.6,3094.4,0.00113685]
[1641743735117,2.30519504,3094.7,3094.4,0.00113685]
[1641743735118,3.30519504,3094.7,3094.4,0.00113685]
[1641743735320,4.65683791,3094.8,3094.4,0.00113685]
[1641743735617,0.80849,3094.6,3094.4,1.17487184]
[1641743735822,2.27540474,3094.8,3094.4,1.17487184]
[1641743736219,2.57540474,3094.8,3094.5,2.75473087]
[1641743736621,4.19240474,3094.8,3094.5,2.75473087]
[1641743737021,1.10849,3094.7,3094.5,2.75473087]
[1641743737320,1.3,3094.7,3094.5,3.2]
[1641743737519,2.72020805,3094.6,3094.5,3.2]
[1641743737718,1.10313805,3094.6,3094.5,3.2]
[1641743737920,2.10313805,3094.6,3094.5,3.2]
[1641743738574,2.10313805,3094.6,3094.5,5.95431256]
[1641743738775,1.91162805,3094.6,3094.5,5.95431256]
[1641743740977,1.80383443,3094.6,3094.5,5.95431256]
[1641743741177,1.80383443,3094.6,3094.5,3.2]
[1641743741476,2.80383443,3094.6,3094.5,3.2]
[1641743741679,12.35383443,3094.6,3094.5,3.2]
[1641743741925,12.35383443,3094.6,3094.2,0.0022737]
[1641743741926,13.45,3094.5,3094.2,0.0022737]
[1641743742122,11.66897906,3094.3,3094.2,0.0022737]
[1641743742321,0.8087,3094.3,3094.0,0.00341054]
[1641743742525,1.07494466,3094.1,3094.0,0.00341054]
[1641743742822,3.18021172,3094.4,3094.0,0.00341054]
[1641743743022,1.11473857,3094.2,3094.0,0.00341054]
[1641743743322,1.11473857,3094.2,3094.0,2.75792156]
[1641743743821,0.8087,3094.3,3094.1,0.00284212]
[1641743744421,0.8087,3094.3,3094.0,0.00341054]
[1641743744621,0.8087,3094.3,3094.0,3.99327569]
[1641743744921,0.8087,3094.3,3094.1,0.00284212]
[1641743744922,1.1087,3094.3,3094.1,0.00284212]
[1641743745221,2.1087,3094.3,3094.1,2.75735314]
[1641743745666,2.1087,3094.3,3094.2,0.0022737]
[1641743745866,2.87828239,3094.3,3094.2,0.0022737]
[1641743746069,4.79550239,3094.3,3094.2,0.0022737]
[1641743746466,4.79550239,3094.3,3094.1,0.00284212]
[1641743746667,3.98691239,3094.3,3094.1,1.23819625]
[1641743747065,4.28691239,3094.3,3094.2,0.0022737]
[1641743747266,4.28691239,3094.3,3094.2,2.75678472]
[1641743747668,8.58691239,3094.3,3094.2,2.75678472]
[1641743747867,8.58691239,3094.3,3094.2,0.0022737]
[1641743748567,8.58691239,3094.3,3094.2,2.75678472]
[1641743749167,4.28691239,3094.3,3094.2,2.75678472]
[1641743749635,4.28691239,3094.3,3094.2,0.0022737]
[1641743750436,4.28691239,3094.3,3094.2,2.75678472]
[1641743751136,3.47828239,3094.3,3094.2,2.75678472]
[1641743751339,1.87828239,3094.3,3094.2,4.4028513]
[1641743751536,2.87828239,3094.3,3094.2,4.4028513]
[1641743751734,2.87828239,3094.3,3094.2,2.75678472]
[1641743751938,2.87828239,3094.3,3094.2,5.22749297]
[1641743752335,2.4256755,3094.4,3094.2,5.22749297]
[1641743752735,2.4256755,3094.4,3094.3,0.00170527]
[1641743752939,3.53093512,3094.4,3094.3,0.00170527]
[1641743753371,1.8783046,3094.4,3094.3,0.00170527]
[1641743753571,1.8783046,3094.4,3094.3,1.64803432]
[1641743753970,2.9868601,3094.4,3094.3,2.75621629]
[1641743754171,4.2868601,3094.4,3094.3,2.75621629]
[1641743754472,3.9868601,3094.4,3094.3,2.75621629]
[1641743754869,4.2868601,3094.4,3094.3,0.00170527]
[1641743755970,3.9868601,3094.4,3094.3,0.00170527]
[1641743756669,3.6868601,3094.4,3094.3,0.00170527]
[1641743757121,3.9868601,3094.4,3094.3,0.00170527]
[1641743758019,3.9868601,3094.4,3094.1,2.75451102]
[1641743758020,0.6,3094.3,3094.2,0.0022737]
[1641743758219,1.6,3094.3,3094.2,0.0022737]
[1641743758519,2.40855,3094.3,3094.2,0.0022737]
[1641743760221,1.80855,3094.3,3094.2,0.0022737]
[1641743760670,0.80855,3094.3,3094.2,0.0022737]
[1641743761070,1.80855,3094.3,3094.2,0.0022737]
[1641743761270,0.80855,3094.3,3094.2,0.0022737]
[1641743761470,1.61810394,3094.8,3094.2,17.0023951]
[1641743761471,0.00113684,3094.8,3094.2,17.0023951]
[1641743761670,0.00113684,3094.8,3094.2,17.95461491]
[1641743761871,0.00113684,3094.8,3094.3,0.00170527]
[1641743762473,0.00113684,3094.8,3094.7,1.34230042]
[1641743762692,0.00113684,3094.8,3094.3,0.00170527]
[1641743762693,1.86817798,3094.8,3094.3,0.00170527]
[1641743762880,1.86817798,3094.8,3094.3,2.75621629]
[1641743762881,0.3,3094.7,3094.3,2.75621629]
[1641743763074,0.3,3094.7,3094.3,2.75451102]
[1641743763374,0.3,3094.7,3094.4,0.00113685]
[1641743763574,1.3,3094.7,3094.4,0.00113685]
[1641743763773,0.8085674,3094.6,3094.4,0.00113685]